[Event "Susha Chess Blitz 2022"]
[Site "Shusha"]
[Date "2022.09.24"]
[Round "8"]
[White "Guseinov, Gadir"]
[Black "Wang, Hao"]
[Result "1/2-1/2"]
[ECO "B23"]
[WhiteElo "2661"]
[BlackElo "2722"]
[Annotator "TA"]
[PlyCount "132"]
[EventDate "2022.09.24"]
[EventType "tourn"]
[EventCountry "AZE"]
[SourceTitle "playchess.com"]
[Source "ChessBase"]
[SourceQuality "1"]
[TimeControl "180+2"]

{[%evp 9,132,10,6,16,4,2,14,0,0,0,0,4,0,0,14,8,20,20,28,27,31,22,37,0,0,-14,0,0,0,0,-5,-24,-32,-36,-38,-72,-72,-72,-72,-72,-72,-72,-72,-72,-72,-72,0,0,0,-20,-20,-381,-374,-354,-365,-327,0,-33,-32,-82,-82,-82,-82,-82,-82,-641,-640,-615,-589,-518,-472,-459,-463,-12102,-8020,-6613,-5916,-29970,-29971,-29971,-29972,-29972,-29973,-29973,-29968,-29968,-29968,-29965,-8,-29983,-29973,-29983,-29966,-29965,-189,-29956,-189,-189,-189,-189,-8,-29974,-29967,-6138,0,0,0,0,0,0,0,0,0,0,0,0,0,0,0,0,0,0,0,0,0]} 1. e4 {[%emt 0:00:01]} c5 {[%emt 0:00:01]} 2. Nc3 {[%emt 0:00:00]} d6 {[%emt 0:00:02]} 3. Bb5+ {[%emt 0:00:02]} Bd7 {[%emt 0:00:01]} 4. Bxd7+ {[%emt 0:00:01]} Qxd7 {[%emt 0:00:02]} 5. d4 {[%emt 0:00:00]} cxd4 {[%emt 0:00:02]} 6. Qxd4 {[%emt 0:00:01] B23: Closed Sicilian: Lines without g3.} Nc6 {[%emt 0:00:02]} 7. Qd3 {[%emt 0:00:00]} g6 {[%emt 0:00:02]} 8. Nf3 {[%emt 0:00:02]} Bg7 {[%emt 0:00:01]} 9. O-O {[%emt 0:00:01]} Nf6 10. Nd5 O-O {[%emt 0:00:07]} 11. Bg5 {[%emt 0:00:00]} Nxd5 {[%emt 0:00:14]} 12. exd5 {[%emt 0:00:02]} Ne5 {[%emt 0:00:01]} 13. Nxe5 {[%emt 0:00:01]} dxe5 {[%emt 0:00:03]} 14. c4 {[%emt 0:00:03] [#]} b6 $146 {[%emt 0:00:07]} ({Predecessor:} 14... h6 15. Be3 f5 16. f3 Kh7 17. Rfd1 b6 18. Rac1 e4 19. fxe4 Bxb2 20. Rc2 Be5 {1-0 (53) Lagno,K (2546)-Hou,Y (2658) Chess.com INT 2020}) 15. Rfd1 {[%emt 0:00:08]} f5 {[%emt 0:00:11]} 16. d6 {[%emt 0:00:10]} exd6 {[%emt 0:00:30]} 17. Qxd6 {[%emt 0:00:03]} Qxd6 {[%emt 0:00:02]} (17... Qf7 {with more complications.} 18. Qd5 e4 19. Rab1 h6) 18. Rxd6 {[%emt 0:00:01]} e4 {[%emt 0:00:01]} 19. Rb1 {[%emt 0:00:05]} h6 {[%emt 0:00:10]} 20. Be3 {[%emt 0:00:26]} f4 {[%emt 0:00:01]} 21. Bd2 {[%emt 0:00:07]} g5 {[%emt 0:00:10]} 22. b4 {[%emt 0:00:31]} Rad8 {[%emt 0:00:05]} 23. Rxd8 {[%emt 0:00:08]} Rxd8 $17 {[%mdl 4096] Endgame KRB-KRB} 24. Be1 Kf7 {[%emt 0:00:14]} 25. Kf1 {[%emt 0:00:04]} Ke6 {[%emt 0:00:03]} 26. f3 {[%emt 0:00:05]} e3 {[%emt 0:00:14]} 27. Ke2 {[%emt 0:00:04]} Bd4 {[%emt 0:00:13]} (27... h5 $17) 28. Rd1 $11 {[%emt 0:00:09]} Rd6 {[%emt 0:00:02]} 29. h4 {[%emt 0:00:11]} Ke5 {[%emt 0:00:11]} 30. Rd3 $2 {[%emt 0:00:11][%mdl 8192]} (30. h5 $11 {and White has nothing to worry.}) 30... gxh4 $19 {[%emt 0:00:08]} 31. Bxh4 {[%emt 0:00:14]} Rg6 {[%emt 0:00:01] Against g3} 32. Kf1 {[%emt 0:00:15]} e2+ $2 {[%emt 0:00:14]} (32... Rc6 $19 33. g4 Rxc4) 33. Kxe2 {[%emt 0:00:00]} Rxg2+ 34. Kf1 (34. Kd1 $15) 34... Rxa2 $17 {[%emt 0:00:04]} 35. Bf6+ {[%emt 0:00:01]} Kxf6 36. Rxd4 {[%emt 0:00:01] KR-KR} Kg5 {[%emt 0:00:03]} 37. Rd7 $2 {[%emt 0:00:09][%mdl 8192]} (37. c5 $17) 37... Kh4 $19 {[%emt 0:00:08]} 38. Rg7 {[%emt 0:00:03]} h5 {[%emt 0:00:02] Against Rg4+} 39. c5 {[%emt 0:00:08]} bxc5 {[%emt 0:00:02]} 40. bxc5 {[%emt 0:00:00]} a5 {[%emt 0:00:07]} ({Not} 40... Rc2 $2 41. Rxa7 Kg3 42. Rc7 $19) 41. c6 {[%emt 0:00:31]} (41. Rg2 $142 Ra1+ 42. Ke2) 41... Rc2 {[%emt 0:00:03] Threatens to win with ...a4.} 42. Ra7 {[%emt 0:00:06]} Kg3 {[%emt 0:00:08]} 43. Rxa5 {[%emt 0:00:01]} h4 {[%emt 0:00:09]} 44. Rg5+ {[%emt 0:00:08]} Kxf3 {[%emt 0:00:02][%cal Rc2c1]} 45. Kg1 {[%emt 0:00:03]} Rxc6 {[%emt 0:00:01]} 46. Ra5 {[%emt 0:00:01]} Rc2 {[%emt 0:00:09]} 47. Ra3+ {[%emt 0:00:02]} Kg4 {[%emt 0:00:05]} 48. Ra8 {[%emt 0:00:01]} h3 $2 {[%emt 0:00:03]} (48... Rd2 49. Ra7 Kg3 50. Rg7+ Kf3 51. Rf7 Rd1+ 52. Kh2 Ke3 53. Kg2 h3+ 54. Kh2 f3 55. Re7+ Kd3 56. Rf7 Ke2 57. Rf8 f2 58. Re8+ Kf1 59. Ra8 Rd2 60. Re8 Re2 61. Ra8 Re4 62. Kxh3 Kg1 63. Rg8+ Kh1 64. Rh8 f1=R 65. Kg3+ Kg1 66. Ra8 Rfe1 67. Rf8 R1e3+ 68. Rf3 Rxf3+ 69. Kxf3 Re8 70. Kf4 Kf2 71. Kg4 Rf8 72. Kg5 Kg3 73. Kg6 Kg4 74. Kg7 Rf1 75. Kg6 Rf3 76. Kh7 Kh5 77. Kg7 Kg5 78. Kh8 Kg6 79. Kg8 Rf1 80. Kh8 Rf8#) 49. Ra3 $2 {[%emt 0:00:02][%mdl 8192] [#]} (49. Rg8+ $11 Kf3 50. Ra8) 49... Re2 {[%emt 0:00:03]} 50. Rb3 {[%emt 0:00:01]} Re3 {[%emt 0:00:02]} 51. Rb8 {[%emt 0:00:01]} Kf3 $2 {[%emt 0:00:02]} (51... Re1+ 52. Kh2 Re2+ 53. Kg1 f3 54. Rf8 Kg3 55. Rg8+ Kf4 56. Rf8+ Ke3 57. Re8+ Kd2 58. Rf8 Re1+ 59. Kf2 h2 60. Rd8+ Kc3 61. Rc8+ Kb4 62. Rh8 h1=Q 63. Rxh1 Rxh1 64. Kxf3 Rh4 65. Kg3 Rc4 66. Kf3 Kc3 67. Ke2 Re4+ 68. Kf3 Kd3 69. Kf2 Rf4+ 70. Kg3 Ke3 71. Kg2 Rg4+ 72. Kh3 Kf3 73. Kh2 Rh4+ 74. Kg1 Rh5 75. Kf1 Rh1#) 52. Rf8 $2 {[%emt 0:00:05]} (52. Ra8 $19) 52... Re4 $2 {[%emt 0:00:05]} (52... Re2 {mates} 53. Rb8 Ra2 54. Rb7 Rd2 55. Ra7 Rb2 56. Ra8 Rg2+ 57. Kh1 Rd2 58. Kg1 Rg2+ 59. Kh1 Rf2 60. Kg1 Rb2 61. Ra7 Rg2+ 62. Kh1 Rf2 63. Kg1 Rg2+ 64. Kh1 Rf2 65. Kg1 Re2 66. Rb7 Ra2 67. Rb8 Rg2+ 68. Kh1 Re2 69. Kg1 Rg2+ 70. Kh1 Rd2 71. Kg1 Re2 72. Rb7 Rg2+ 73. Kh1 Re2 74. Kg1) 53. Ra8 {[%emt 0:00:06]} Re1+ {[%emt 0:00:06]} 54. Kh2 {[%emt 0:00:00]} Kf2 $2 {[%emt 0:00:02]} ({Black should play} 54... Re5 $19 {aiming for ...Rh5.} 55. Ra7 Re8) 55. Ra2+ $2 {[%emt 0:00:04][%mdl 8192]} (55. Kxh3 $11 Re3+ 56. Kh2) 55... Re2 56. Ra1 {[#]} f3 $2 {[%emt 0:00:06]} (56... Re3 $1 $19 {[%cal Re3e1] Hoping for ...Re1.} 57. Rb1 Re1) 57. Kxh3 $11 {[%emt 0:00:04] The position is equal.} Rb2 {[%emt 0:00:02]} 58. Kh2 {[%emt 0:00:04]} Ke3+ {[%emt 0:00:02]} 59. Kg3 {[%emt 0:00:02]} Rg2+ {[%emt 0:00:04]} 60. Kh3 {[%emt 0:00:00]} Rg8 {[%emt 0:00:02]} 61. Ra3+ {[%emt 0:00:01]} Kf4 {[%emt 0:00:02][%cal Rg8h8]} 62. Ra4+ {[%emt 0:00:01]} Ke3 {[%emt 0:00:01]} 63. Ra3+ {[%emt 0:00:00]} Ke4 {[%emt 0:00:02]} 64. Ra4+ {[%emt 0:00:00]} Ke5 {[%emt 0:00:02]} 65. Ra5+ {[%emt 0:00:01]} Ke4 {[%emt 0:00:03]} 66. Ra4+ Ke5 {And White is the lucky defender.  Weighted Error Value: White=0.74/Black=0.28 (precise)} 1/2-1/2

[Event "Susha Chess Blitz 2022"]
[Site "Shusha"]
[Date "2022.09.24"]
[Round "8"]
[White "Mamedov, Rauf"]
[Black "Vidit, Santosh Gujrathi"]
[Result "0-1"]
[ECO "C77"]
[WhiteElo "2646"]
[BlackElo "2710"]
[Annotator "TA"]
[PlyCount "148"]
[EventDate "2022.09.24"]
[EventType "tourn"]
[EventCountry "AZE"]
[SourceTitle "playchess.com"]
[Source "ChessBase"]
[SourceQuality "1"]
[TimeControl "180+2"]

{[%evp 15,148,16,15,4,0,2,14,-20,7,-25,15,-4,0,0,12,-45,0,0,6,0,49,39,43,41,24,12,12,10,12,10,20,0,0,0,0,0,0,-38,-35,-237,-237,-488,-300,-292,-292,-292,-292,-292,-292,-523,-331,-329,-309,-541,-351,-350,-302,-302,-302,-374,-374,-427,-416,-453,-429,-491,-491,-503,-444,-503,-503,-508,-478,-468,-468,-525,-447,-460,-453,-513,-432,-404,-348,-348,-348,-348,-348,-348,-341,-341,-341,-402,-341,-431,-272,-341,-272,-272,-272,-341,-333,-333,-333,-333,-331,-326,-300,-324,-319,-307,-290,-287,-279,-279,-263,-523,-461,-435,-462,-448,-63,-462,-433,-458,-439,-542,-481,-454,-443,-29972,-29973,-29968,-29969,-5961,-5548]} 1. e4 {[%emt 0:00:00]} e5 {[%emt 0:00:01]} 2. Nf3 {[%emt 0:00:02]} Nc6 {[%emt 0:00:01]} 3. Bb5 {[%emt 0:00:05]} Nf6 {[%emt 0:00:01]} 4. Qe2 {[%emt 0:00:01]} a6 {[%emt 0:00:04]} 5. Ba4 {[%emt 0:00:01]} b5 {[%emt 0:00:04]} 6. Bb3 {[%emt 0:00:01]} Be7 {[%emt 0:00:02]} 7. d4 {[%emt 0:00:01]} d6 {[%emt 0:00:06]} 8. c3 {[%emt 0:00:04]} O-O {[%emt 0:00:02]} 9. h3 {[%emt 0:00:02] Prevents Bg4. C77: Ruy Lopez: 3...a6 4 Ba4 Nf6, unusual lines.} Bb7 {[%emt 0:00:04]} 10. O-O {[%emt 0:00:02]} Re8 {[%emt 0:00:08]} 11. Nbd2 {[%emt 0:00:25] The position is equal.} Bf8 {[%emt 0:00:04]} 12. Re1 {[%emt 0:00:47]} h6 {[%emt 0:00:27] Inhibits Ng5.} 13. Qd1 {[%emt 0:00:10] [#]} g6 $146 {[%emt 0:00:22]} ({Predecessor:} 13... exd4 14. cxd4 Nb4 15. Re3 Nxe4 16. Rxe4 Bxe4 17. a3 Nc6 18. a4 d5 19. Ne1 Nxd4 {0-1 (31) Jans,A (1843)-Simon,B (2305) ICCF email 2010}) 14. a4 $1 {[%emt 0:00:16]} Bg7 {[%emt 0:00:12]} 15. Nh4 {[%emt 0:00:46]} (15. dxe5 $11 Nxe5 16. Nxe5 Rxe5 17. f3) 15... d5 {[%emt 0:00:19]} 16. exd5 {[%emt 0:00:06]} Nxd5 {[%emt 0:00:02]} 17. Nhf3 {[%emt 0:00:02]} Na5 {[%emt 0:00:38]} (17... Nb6 $11) 18. dxe5 {[%emt 0:00:02]} Nf4 {[%emt 0:00:08]} 19. Bc2 {[%emt 0:00:03]} Nd3 {[%emt 0:00:05]} 20. Bxd3 {[%emt 0:00:09]} Qxd3 {[%emt 0:00:02]} 21. Re3 {[%emt 0:00:15]} Qd5 {[%emt 0:00:04]} 22. Qe2 {[%emt 0:00:12]} Nc6 {[%emt 0:00:08]} 23. axb5 {[%emt 0:00:05]} (23. Rd3 {is more complex.} Qe6 24. Nd4 Nxd4 25. cxd4 c5 26. dxc5 Bxe5 27. Re3) 23... axb5 {[%emt 0:00:03]} 24. Rxa8 {[%emt 0:00:01]} Bxa8 {[%emt 0:00:16]} 25. c4 {[%emt 0:00:01]} bxc4 {[%emt 0:00:04]} 26. Qxc4 {[%emt 0:00:01]} Nxe5 {[%emt 0:00:07]} 27. Qxc7 {[%emt 0:00:08] [#] Black keeps a firm grip on the game.} ({White should play} 27. Qxd5 $15 Bxd5 28. Kf1) 27... Bb7 $1 $19 {[%emt 0:00:03][%cal Ba8b7,Bb7d5,Bd5e6][%mdl 32] Strongly threatening ...Rc8.} 28. Nf1 $2 {[%emt 0:00:03]} (28. Qc2) 28... Rc8 {[%emt 0:00:06][%cal Be8c8,Bc8c7,Bc7b7,Bb7b2,Bb2b4,Bb4h4,Bh4h5,Bh5b5][%mdl 32]} 29. Rxe5 {[%emt 0:00:03]} Rxc7 {[%emt 0:00:04]} 30. Rxd5 {[%emt 0:00:01]} Bxd5 {[%emt 0:00:01] This bishop pair is nice.} 31. Bf4 {[%emt 0:00:01]} Rb7 {[%emt 0:00:02]} 32. Ne5 $2 {[%emt 0:00:05]} (32. Bc1) 32... Rxb2 {[%emt 0:00:04]} 33. Ne3 {[%emt 0:00:01]} Be6 {[%emt 0:00:02]} 34. h4 {[%emt 0:00:02] Against g5} (34. Nf3) 34... Rb4 {[%emt 0:00:02]} 35. Bg3 {[%emt 0:00:03]} Bxe5 {[%emt 0:00:03]} 36. Bxe5 {[%emt 0:00:01]} Rxh4 {[%emt 0:00:03][%mdl 4096] Endgame KRB-KBN} 37. f4 {[%emt 0:00:01]} f6 {[%emt 0:00:05]} 38. Bc7 {[%emt 0:00:03]} Rh5 {[%emt 0:00:03]} 39. Bd8 {[%emt 0:00:03]} Kf7 {[%emt 0:00:02]} 40. Kf2 {[%emt 0:00:01]} Rb5 {[%emt 0:00:03]} 41. Bc7 {[%emt 0:00:01]} Bd5 {[%emt 0:00:02]} 42. g4 {[%emt 0:00:01]} Be4 {[%emt 0:00:02] Against f5} 43. Bd6 {[%emt 0:00:02]} Rb2+ {[%emt 0:00:02]} 44. Kg3 {[%emt 0:00:01]} Ke6 {[%emt 0:00:02]} 45. Bf8 {[%emt 0:00:01]} Re2 {[%emt 0:00:01]} 46. Bc5 {[%emt 0:00:06]} h5 {[%emt 0:00:03]} 47. f5+ {[%emt 0:00:01]} Kf7 {[%emt 0:00:03]} 48. fxg6+ {[%emt 0:00:01]} Bxg6 {[%emt 0:00:01]} 49. gxh5 {[%emt 0:00:01]} Bxh5 {[%emt 0:00:01]} 50. Ng2 {[%emt 0:00:03]} Bg6 {[%emt 0:00:03]} 51. Nf4 {[%emt 0:00:01]} Rc2 {[%emt 0:00:01]} 52. Bd4 {[%emt 0:00:01]} Rc4 {[%emt 0:00:02]} 53. Bb2 {[%emt 0:00:01]} Be4 {[%emt 0:00:02]} 54. Ba1 {[%emt 0:00:05]} f5 {[%emt 0:00:02]} 55. Be5 {[%emt 0:00:01]} Ra4 {[%emt 0:00:02]} 56. Kh4 {[%emt 0:00:01]} Ra8 {[%emt 0:00:03]} 57. Kg3 {[%emt 0:00:02]} Rg8+ {[%emt 0:00:01]} 58. Kf2 {[%emt 0:00:00]} Ke7 {[%emt 0:00:01]} 59. Ke2 {[%emt 0:00:06]} Kd7 {[%emt 0:00:01]} 60. Ke3 {[%emt 0:00:02]} Kc6 {[%emt 0:00:01]} 61. Kd4 {[%emt 0:00:01]} Ra8 {[%emt 0:00:02]} 62. Bg7 {[%emt 0:00:04]} Ra4+ {[%emt 0:00:04]} 63. Ke5 {[%emt 0:00:00]} Bb1 {[%emt 0:00:02]} 64. Bh6 {[%emt 0:00:01]} Kd7 {[%emt 0:00:03]} 65. Kd5 $2 {[%emt 0:00:04]} (65. Bg5) 65... Ke7 {[%emt 0:00:04]} 66. Ke5 {[%emt 0:00:02]} Kf7 {[%emt 0:00:01]} 67. Bg5 {[%emt 0:00:01]} Re4+ $2 {[%emt 0:00:02]} (67... Bc2 $19 68. Bh4 Rc4) 68. Kd5 $2 {[%emt 0:00:01][%mdl 8192]} (68. Kxf5 $15 Re1+ 69. Kg4) 68... Re8 {[%emt 0:00:02]} 69. Kd4 {[%emt 0:00:06]} Bc2 {[%emt 0:00:02]} 70. Kd5 {[%emt 0:00:02]} Be4+ {[%emt 0:00:01]} 71. Kd4 {[%emt 0:00:00]} Bb7 {[%emt 0:00:01]} 72. Kd3 {[%emt 0:00:03] [#]} (72. Bh6 $19) 72... Rg8 {[%emt 0:00:03]} 73. Bh6 {[%emt 0:00:04]} Kf6 {[%emt 0:00:02]} 74. Kd4 {[%emt 0:00:04]} Rh8 {[%emt 0:00:03] Weighted Error Value: White=0.38/Black=0.29 (precise)} 0-1

[Event "Susha Chess Blitz 2022"]
[Site "Shusha"]
[Date "2022.09.24"]
[Round "9"]
[White "Mamedyarov, Shakhriyar"]
[Black "Yilmaz, Mustafa"]
[Result "0-1"]
[ECO "D38"]
[WhiteElo "2757"]
[BlackElo "2633"]
[Annotator "TA"]
[PlyCount "82"]
[EventDate "2022.09.24"]
[EventType "tourn"]
[EventCountry "AZE"]
[SourceTitle "playchess.com"]
[Source "ChessBase"]
[SourceQuality "1"]
[TimeControl "180+2"]

{[%evp 9,82,12,19,5,21,13,25,-41,-40,-41,-42,-65,-20,-55,-37,-29,-36,-31,-43,-59,-32,0,0,-24,25,-46,-39,-129,-131,-219,-245,-266,-232,-222,-213,-353,-364,-404,-316,-326,-213,-221,-211,-211,0,0,0,0,75,77,89,0,0,0,0,0,20,-110,0,0,68,0,0,-29991,-29992,-29993,-29994,-29994,0,0,0,-29994,-29995,-29995,-29996]} 1. d4 {[%emt 0:00:01]} Nf6 {[%emt 0:00:01]} 2. c4 {[%emt 0:00:04]} e6 {[%emt 0:00:02]} 3. Nf3 {[%emt 0:00:01]} d5 {[%emt 0:00:01]} 4. Nc3 {[%emt 0:00:01]} Bb4 {[%emt 0:00:01]} 5. cxd5 {[%emt 0:00:00]} exd5 {[%emt 0:00:01]} 6. Bf4 {[%emt 0:00:01] D38: Queen's Gambit Declined: Ragozin Defence (4 Nf3 Bb4).} Ne4 {[%emt 0:00:04] Nowadays more popular than 6...0-0.} 7. Rc1 {[%emt 0:00:01]} ({Reject} 7. Qa4+ Nc6 8. Nd2 Nxc3 9. bxc3 Bxc3 $17) 7... Nc6 {[%emt 0:00:01]} 8. e3 {[%emt 0:00:02]} (8. Nd2 $11) 8... g5 $15 {[%emt 0:00:08]} 9. Bg3 {[%emt 0:00:01]} h5 {[%emt 0:00:00] Threatens to win with ...h4.} 10. h4 {[%emt 0:00:01] [#]} Bxc3+ $5 $146 {[%emt 0:00:03][%mdl 8] An interesting novelty.} ({Predecessor:} 10... Nxg3 11. fxg3 Bd6 12. hxg5 Bxg3+ 13. Kd2 Bg4 14. Qb3 Ne7 15. Bd3 c6 16. Rcf1 Bd6 {1-0 (30) Sasikiran,K (2650)-Volokitin,A (2681) Chess.com INT 2022}) 11. Rxc3 {[%emt 0:00:07]} Nxc3 {[%emt 0:00:43]} 12. bxc3 {[%emt 0:00:01]} g4 {[%emt 0:00:09]} 13. Nd2 {[%emt 0:00:04]} Bf5 {[%emt 0:00:09] Against Qb1} 14. Bb5 {[%emt 0:00:03]} Rh6 {[%emt 0:00:08]} 15. O-O {[%emt 0:00:06]} a6 {[%emt 0:00:01]} 16. Ba4 {[%emt 0:00:05]} Qe7 {[%emt 0:00:03]} (16... b5 {is superior.} 17. Bc2 Bxc2 18. Qxc2 Ne7) 17. Re1 {[%emt 0:00:45]} (17. e4 $11 dxe4 18. d5) 17... O-O-O {[%emt 0:00:02]} 18. Qc1 {[%emt 0:00:10] [#]} (18. e4 $1 $15 dxe4 19. Bf4) 18... Na5 $1 $17 {[%emt 0:00:12][%cal Bc6a5,Ba5c4,Bc4d2][%mdl 32]} 19. c4 {[%emt 0:00:13]} (19. Kh2 $17 {keeps fighting.}) 19... Nxc4 $19 {[%emt 0:00:52]} 20. Qc3 {[%emt 0:00:07]} Nxd2 {[%emt 0:00:23]} 21. Qxd2 {[%emt 0:00:02][%cal Oe3e4]} Rb6 {[%emt 0:00:01]} 22. e4 {[%emt 0:00:29]} (22. Kh2 $142) 22... Bxe4 {[%emt 0:00:13]} 23. Kh2 {[%emt 0:00:27]} Rb1 {[%emt 0:00:07]} 24. Re3 {[%emt 0:00:02]} Rb4 {[%emt 0:00:16]} 25. Bb3 {[%emt 0:00:14]} f5 {[%emt 0:00:05][%cal Of5f4]} 26. Rc3 {[%emt 0:00:02]} Rd6 $2 {[%emt 0:00:03]} 27. f3 $1 $11 {[%emt 0:00:16]} gxf3 {[%emt 0:00:02]} 28. gxf3 {[%emt 0:00:01]} Rbb6 {[%emt 0:00:04]} (28... Rc6 $11 29. fxe4 f4) 29. fxe4 $16 {[%emt 0:00:03]} fxe4 {[%emt 0:00:02]} 30. Qf4 {[%emt 0:00:14]} (30. Bxd6 $16 Rxd6 31. Qg5) 30... Kb8 $11 {[%emt 0:00:01]} 31. Qf5 {[%emt 0:00:14]} Ka7 {[%emt 0:00:02]} 32. Rc5 {[%emt 0:00:02]} e3 {[%emt 0:00:01] ...e2 is the strong threat.} 33. Rc1 {[%emt 0:00:02] [#]} (33. Qe5 $11 {remains equal.} Qxe5 34. dxe5) 33... e2 {[%emt 0:00:01]} (33... Rf6 $1 $17 {[%cal Rf6f5]} 34. Qe5 Qxe5 35. dxe5 Rfc6 36. Rxc6 Rxc6) 34. Re1 {[%emt 0:00:01]} Re6 {[%emt 0:00:01] Against Qe5} ({Black should play} 34... Rg6 $11 35. Qe5 Rbe6 36. Qxc7 Qxc7 37. Bxc7 Re4) 35. Qf4 {[%emt 0:00:02]} ({White should try} 35. Bxd5 $14 Re3 36. Bg2) 35... Re4 {[%emt 0:00:02][%cal Be6e4,Be4h4,Bh4h1][%mdl 32]} 36. Qxc7 {[%emt 0:00:01][%mdl 8192]} (36. Qg5 $11) 36... Rxh4+ {[%emt 0:00:01]} 37. Kg2 {[%emt 0:00:02]} Qe4+ {[%emt 0:00:05]} 38. Kg1 {[%emt 0:00:01]} Qe3+ {[%emt 0:00:02]} 39. Kg2 {[%emt 0:00:00][%csl Gg3][%cal Rc7b8]} Qe4+ 40. Kg1 {[%csl Gg3][%cal Rc7b8]} Rh1+ {[%emt 0:00:02]} 41. Kf2 {[%emt 0:00:02]} Rf6+ {[%emt 0:00:01] Weighted Error Value: White=0.41/Black=0.43} 0-1

[Event "Susha Chess Blitz 2022"]
[Site "Shusha"]
[Date "2022.09.24"]
[Round "9"]
[White "Kasimdzhanov, Rustam"]
[Black "Radjabov, Teimour"]
[Result "0-1"]
[ECO "B28"]
[WhiteElo "2670"]
[BlackElo "2747"]
[Annotator "TA"]
[PlyCount "86"]
[EventDate "2022.09.24"]
[EventType "tourn"]
[EventCountry "AZE"]
[SourceTitle "playchess.com"]
[Source "ChessBase"]
[SourceQuality "1"]
[TimeControl "180+2"]

{[%evp 10,85,32,15,10,6,20,8,36,33,32,8,34,7,17,33,26,26,31,-8,0,-15,-12,-15,66,57,50,63,60,55,88,92,150,140,159,154,250,260,287,198,193,170,172,184,193,200,195,195,194,193,197,137,171,171,203,203,203,196,195,195,601,591,609,609,29974,29967,29991,-29990,-29991,-29991,-29992,-29992,-29993,-29993,-29994,-29995,-29996,-29999]} 1. e4 {[%emt 0:00:00]} c5 {[%emt 0:00:00]} 2. Nf3 a6 3. c3 {[%emt 0:00:03]} e6 {[%emt 0:00:02]} 4. d4 {[%emt 0:00:01]} d5 {[%emt 0:00:00]} 5. e5 {[%emt 0:00:01]} Bd7 {[%emt 0:00:02]} 6. Be2 {[%emt 0:00:01]} Nc6 {[%emt 0:00:04] B28: Sicilian: 2 Nf3 a6 (O'Kelly Variation).} 7. O-O {[%emt 0:00:02]} Qb6 {[%emt 0:00:04]} 8. Na3 {[%emt 0:00:10][%cal Bb1a3,Ba3c2,Bc2e3][%mdl 32]} Rc8 {[%emt 0:00:05] The position is equal.} 9. Nc2 {[%emt 0:00:02]} cxd4 {[%emt 0:00:02]} 10. cxd4 {[%emt 0:00:02]} Nge7 {[%emt 0:00:02][%cal Bg8e7,Be7g6,Bg6f8][%mdl 32]} 11. Ne3 {[%emt 0:00:03]} Ng6 {[%emt 0:00:03]} 12. g3 {[%emt 0:00:03] Inhibits Nf4.} Be7 {[%emt 0:00:20] [#]} 13. h4 $146 {[%emt 0:00:02][%cal Bh2h4,Bh4h5][%mdl 32]} ({Predecessor:} 13. b3 O-O 14. Bb2 Na7 15. Rc1 Bb5 16. Rxc8 Rxc8 17. Bxb5 Nxb5 18. Qd2 Rc6 19. Rc1 Rxc1+ 20. Qxc1 {½-½ (48) Biro,P (2069)-Habzola,P Hungary 2004}) 13... h6 {[%emt 0:00:01]} 14. h5 {[%emt 0:00:02]} Nf8 {[%emt 0:00:01]} 15. Rb1 {[%emt 0:00:04][%cal Ob2b4]} Nh7 {[%emt 0:00:01]} 16. Ng2 {[%emt 0:00:22]} Kd8 {[%emt 0:00:14]} (16... Nb4 $11) 17. Be3 $14 {[%emt 0:00:06]} Ng5 {[%emt 0:00:16]} 18. Nxg5 {[%emt 0:00:06]} hxg5 {[%emt 0:00:01]} 19. b4 {[%emt 0:00:03]} ({Much weaker is} 19. f4 gxf4 20. gxf4 f5 $15) 19... Na7 {[%emt 0:00:18]} 20. a4 {[%emt 0:00:09] Against Nb5} f6 {[%emt 0:00:06]} ({Better is} 20... Qc6) 21. b5 $16 {[%emt 0:00:08]} axb5 {[%emt 0:00:59]} 22. axb5 {[%emt 0:00:04]} Ke8 {[%emt 0:00:08]} (22... Rc3 $16 23. Qd2 Ra3) 23. Qd2 $18 {[%emt 0:00:07]} Kf7 {[%emt 0:00:06]} 24. f4 {[%emt 0:00:08]} ({Not} 24. Qd3 f5 $14) 24... g4 {[%emt 0:00:00]} 25. Bxg4 {[%emt 0:00:06] Hoping for f5.} f5 {[%emt 0:00:01]} 26. Be2 {[%emt 0:00:03]} Rcg8 {[%emt 0:00:19]} 27. g4 {[%emt 0:00:07][%cal Bg3g4,Bg4g5][%mdl 32]} g6 {[%emt 0:00:01]} 28. g5 $1 {[%emt 0:00:06]} gxh5 {[%emt 0:00:07]} 29. Nh4 {[%emt 0:00:04]} Ra8 {[%emt 0:00:09]} 30. Kg2 {[%emt 0:00:08]} ({White should play} 30. Qb2 $18) 30... Kg7 {[%emt 0:00:01]} 31. Kg3 {[%emt 0:00:03]} Nxb5 {[%emt 0:00:06]} 32. Bxb5 {[%emt 0:00:35]} Bxb5 {[%emt 0:00:01] [#]} 33. Qb2 $1 {[%emt 0:00:01]} Ra5 {[%emt 0:00:00]} 34. Bd2 {[%emt 0:00:02]} Ra3+ {[%emt 0:00:02]} (34... Qa6) 35. Rf3 {[%emt 0:00:00]} Rha8 {[%emt 0:00:21]} 36. Qxb5 {[%emt 0:00:09]} Qxd4 {[%emt 0:00:01]} 37. Qd7 {[%emt 0:00:05]} Kf7 {[%emt 0:00:00]} 38. Rxb7 $4 {[%emt 0:00:05][%mdl 8192]} (38. g6+ {and all is fine.} Kf8 39. Qxe6 Ke8 40. g7 Rxf3+ 41. Nxf3 h4+ 42. Kh3 Qg1 43. Rxg1 Kd8 44. g8=Q+ Kc7 45. Rc1+ Bc5 46. Rxc5#) 38... Qg1+ {[%emt 0:00:02] Black mates.} 39. Kh3 {[%emt 0:00:29] [#]} Rxf3+ $1 {[%emt 0:00:06][%mdl 64] Remove Defender} 40. Nxf3 {[%emt 0:00:02]} Qf1+ {[%emt 0:00:01]} 41. Kg3 {[%emt 0:00:09]} h4+ $1 {[%emt 0:00:01]} 42. Nxh4 Ra3+ 43. Kh2 {[%emt 0:00:07]} Rh3# {[%emt 0:00:02] What a bad dream for White.  Weighted Error Value: White=0.24 (precise) /Black=0.41} 0-1